[Event "*** Titled Tuesday Blitz"]
[Site "Chess.com"]
[Date "2020.10.20"]
[Round "2"]
[White "witcher8"]
[Black "abhidabhi"]
[Result "0-1"]
[WhiteElo "2438"]
[BlackElo "2801"]
[TimeControl "180+1"]
[EndTime "10:19:13 PDT"]
[Termination "abhidabhi won on time"]

1. e4 {[%clk 0:03:00.9]} 1... d5 {[%clk 0:02:58.4]} 2. exd5 {[%clk 0:03:00.9]}
2... Qxd5 {[%clk 0:02:58.5]} 3. Nc3 {[%clk 0:03:01.3]} 3... Qd6 {[%clk
0:02:58.7]} 4. Nf3 {[%clk 0:02:59.8]} 4... Nf6 {[%clk 0:02:58.7]} 5. d4 {[%clk
0:02:59.3]} 5... c6 {[%clk 0:02:59.1]} 6. Bc4 {[%clk 0:02:48]} 6... Bf5 {[%clk
0:02:56.1]} 7. O-O {[%clk 0:02:44.7]} 7... e6 {[%clk 0:02:55.4]} 8. Qe2 {[%clk
0:02:40.2]} 8... Be7 {[%clk 0:02:55]} 9. h3 {[%clk 0:02:19.7]} 9... O-O {[%clk
0:02:51.4]} 10. Bg5 {[%clk 0:02:07.6]} 10... h6 {[%clk 0:02:37]} 11. Bh4 {[%clk
0:02:07.1]} 11... Nbd7 {[%clk 0:02:31.7]} 12. a3 {[%clk 0:01:51.8]} 12... Qc7
{[%clk 0:02:27.2]} 13. Rad1 {[%clk 0:01:47.3]} 13... Rad8 {[%clk 0:02:25.5]} 14.
Ne5 {[%clk 0:01:44.2]} 14... Nxe5 {[%clk 0:02:16.2]} 15. dxe5 {[%clk 0:01:43.7]}
15... Nd5 {[%clk 0:02:16.3]} 16. Nxd5 {[%clk 0:01:15.6]} 16... cxd5 {[%clk
0:01:59.5]} 17. Bxe7 {[%clk 0:01:15.6]} 17... Qxe7 {[%clk 0:01:59.7]} 18. Bd3
{[%clk 0:01:16.1]} 18... Bxd3 {[%clk 0:01:58.8]} 19. Rxd3 {[%clk 0:01:16.2]}
19... Rc8 {[%clk 0:01:58.2]} 20. c3 {[%clk 0:01:16.2]} 20... Rc6 {[%clk
0:01:56.9]} 21. f4 {[%clk 0:01:16.4]} 21... Rc4 {[%clk 0:01:45.6]} 22. f5 {[%clk
0:01:15.3]} 22... Re4 {[%clk 0:01:41.1]} 23. Re3 {[%clk 0:01:15.1]} 23... Qc5
{[%clk 0:01:40.6]} 24. Rf3 {[%clk 0:01:08.3]} 24... Rxe5 {[%clk 0:01:37]} 25.
Kh1 {[%clk 0:01:04]} 25... Rxe3 {[%clk 0:01:33.5]} 26. Rxe3 {[%clk 0:01:04.9]}
26... exf5 {[%clk 0:01:28.4]} 27. Re5 {[%clk 0:01:04.8]} 27... g6 {[%clk
0:01:26.4]} 28. Qd2 {[%clk 0:01:04.2]} 28... Rd8 {[%clk 0:01:00]} 29. Qxh6
{[%clk 0:01:03.1]} 29... Qd6 {[%clk 0:00:54.8]} 30. Qe3 {[%clk 0:00:59.5]} 30...
Kg7 {[%clk 0:00:32.5]} 31. Re7 {[%clk 0:00:48.3]} 31... Qf6 {[%clk 0:00:26.7]}
32. Rxb7 {[%clk 0:00:41.6]} 32... d4 {[%clk 0:00:26.2]} 33. cxd4 {[%clk
0:00:32.4]} 33... Rxd4 {[%clk 0:00:27.1]} 34. Qe7 {[%clk 0:00:26.7]} 34... Qxe7
{[%clk 0:00:16.7]} 35. Rxe7 {[%clk 0:00:26.1]} 35... a5 {[%clk 0:00:16.7]} 36.
Ra7 {[%clk 0:00:21.3]} 36... a4 {[%clk 0:00:17.1]} 37. Rb7 {[%clk 0:00:21.7]}
37... Kf6 {[%clk 0:00:16.9]} 38. Kg1 {[%clk 0:00:20]} 38... Rd2 {[%clk
0:00:16.3]} 39. Rb4 {[%clk 0:00:18.9]} 39... Ke5 {[%clk 0:00:14.2]} 40. Kf1
{[%clk 0:00:18.7]} 40... f4 {[%clk 0:00:13.2]} 41. Rxa4 {[%clk 0:00:12.7]} 41...
Rxb2 {[%clk 0:00:12.8]} 42. Ra7 {[%clk 0:00:12.8]} 42... f6 {[%clk 0:00:12.3]}
43. a4 {[%clk 0:00:12.3]} 43... Ra2 {[%clk 0:00:11.4]} 44. a5 {[%clk 0:00:12.3]}
44... g5 {[%clk 0:00:11.7]} 45. a6 {[%clk 0:00:11]} 45... f5 {[%clk 0:00:10.1]}
46. Re7+ {[%clk 0:00:10.4]} 46... Kf6 {[%clk 0:00:10.3]} 47. Ra7 {[%clk
0:00:10.3]} 47... g4 {[%clk 0:00:09.7]} 48. h4 {[%clk 0:00:09.9]} 48... Ra1+
{[%clk 0:00:07.8]} 49. Kf2 {[%clk 0:00:09.7]} 49... g3+ {[%clk 0:00:07.8]} 50.
Kf3 {[%clk 0:00:06.9]} 50... Rf1+ {[%clk 0:00:07.8]} 51. Ke2 {[%clk 0:00:07.1]}
51... Rf2+ {[%clk 0:00:08.7]} 52. Kd3 {[%clk 0:00:07.1]} 52... Rxg2 {[%clk
0:00:09.6]} 53. Ra8 {[%clk 0:00:07.6]} 53... Ra2 {[%clk 0:00:09.8]} 54. a7
{[%clk 0:00:08.2]} 54... Kg7 {[%clk 0:00:10.1]} 55. h5 {[%clk 0:00:07]} 55... g2
{[%clk 0:00:10.3]} 56. h6+ {[%clk 0:00:07.3]} 56... Kh7 {[%clk 0:00:09.9]} 57.
Rh8+ {[%clk 0:00:07.9]} 57... Kxh8 {[%clk 0:00:09.6]} 0-1

[Event "*** Titled Tuesday Blitz"]
[Site "Chess.com"]
[Date "2020.10.20"]
[Round "2"]
[White "Ziachess74"]
[Black "Shahinyan_ChessMood"]
[Result "1-0"]
[WhiteElo "2490"]
[BlackElo "2724"]
[TimeControl "180+1"]
[EndTime "10:19:14 PDT"]
[Termination "Ziachess74 won by resignation"]

1. d4 {[%clk 0:03:00.9]} 1... Nf6 {[%clk 0:02:58]} 2. Bg5 {[%clk 0:02:57.9]}
2... d5 {[%clk 0:02:57]} 3. e3 {[%clk 0:02:55.2]} 3... Nbd7 {[%clk 0:02:50.6]}
4. Nf3 {[%clk 0:02:53.5]} 4... h6 {[%clk 0:02:49.3]} 5. Bh4 {[%clk 0:02:50.8]}
5... g5 {[%clk 0:02:41]} 6. Bg3 {[%clk 0:02:50.3]} 6... Ne4 {[%clk 0:02:41.6]}
7. Nbd2 {[%clk 0:02:44.1]} 7... f5 {[%clk 0:02:34.6]} 8. Nxe4 {[%clk 0:02:20.5]}
8... fxe4 {[%clk 0:02:33.2]} 9. Ne5 {[%clk 0:02:19]} 9... Nf6 {[%clk 0:02:31.3]}
10. Be2 {[%clk 0:02:12.2]} 10... h5 {[%clk 0:02:19.7]} 11. h4 {[%clk 0:02:10.9]}
11... g4 {[%clk 0:02:16.3]} 12. c4 {[%clk 0:02:07]} 12... e6 {[%clk 0:02:12.3]}
13. Qb3 {[%clk 0:02:02.9]} 13... c6 {[%clk 0:02:10.3]} 14. O-O-O {[%clk
0:01:59.3]} 14... Qb6 {[%clk 0:01:57.4]} 15. Qc2 {[%clk 0:01:54.4]} 15... Bg7
{[%clk 0:01:41.9]} 16. f3 {[%clk 0:01:43.2]} 16... Bd7 {[%clk 0:01:33.6]} 17.
fxg4 {[%clk 0:01:42]} 17... hxg4 {[%clk 0:01:34.5]} 18. Nxg4 {[%clk 0:01:35.7]}
18... Nxg4 {[%clk 0:01:33.2]} 19. Bxg4 {[%clk 0:01:36.6]} 19... O-O-O {[%clk
0:01:33.6]} 20. Bf4 {[%clk 0:01:11.8]} 20... Rdg8 {[%clk 0:01:29.8]} 21. Be2
{[%clk 0:00:38.9]} 21... Bf6 {[%clk 0:01:15.9]} 22. g3 {[%clk 0:00:35.3]} 22...
Be8 {[%clk 0:01:13.9]} 23. Kb1 {[%clk 0:00:29.9]} 23... Bh5 {[%clk 0:01:05.6]}
24. Bxh5 {[%clk 0:00:27.9]} 24... Rxh5 {[%clk 0:01:06.5]} 25. Qe2 {[%clk
0:00:26.6]} 25... Rh7 {[%clk 0:01:07]} 26. h5 {[%clk 0:00:25.4]} 26... Bg5
{[%clk 0:00:50.2]} 27. Qg4 {[%clk 0:00:20.1]} 27... Qd8 {[%clk 0:00:35.8]} 28.
Qxe6+ {[%clk 0:00:19.8]} 28... Rd7 {[%clk 0:00:36.3]} 29. h6 {[%clk 0:00:19]}
29... Bxf4 {[%clk 0:00:33.9]} 30. gxf4 {[%clk 0:00:19.2]} 30... Re8 {[%clk
0:00:34.3]} 31. Qh3 {[%clk 0:00:18.4]} 31... Rh8 {[%clk 0:00:31.7]} 32. cxd5
{[%clk 0:00:19.3]} 32... cxd5 {[%clk 0:00:31.2]} 33. Rdg1 {[%clk 0:00:19.1]}
33... Kb8 {[%clk 0:00:27.3]} 34. Rg6 {[%clk 0:00:15.8]} 34... a6 {[%clk
0:00:24.4]} 35. Rhg1 {[%clk 0:00:14.8]} 35... Ka7 {[%clk 0:00:20.7]} 36. Qe6
{[%clk 0:00:13.8]} 36... Rdh7 {[%clk 0:00:16.1]} 37. f5 {[%clk 0:00:12]} 37...
Qa5 {[%clk 0:00:14.2]} 38. a3 {[%clk 0:00:11]} 38... Qb5 {[%clk 0:00:13.8]} 39.
Ka1 {[%clk 0:00:09.8]} 39... Rc7 {[%clk 0:00:11.2]} 40. Rb1 {[%clk 0:00:06.5]}
40... Rhc8 {[%clk 0:00:10.8]} 41. Rg7 {[%clk 0:00:05.8]} 41... Rc1 {[%clk
0:00:10.4]} 42. Rg1 {[%clk 0:00:05.4]} 42... Rxg1 {[%clk 0:00:09.4]} 43. Rxg1
{[%clk 0:00:04.9]} 43... Rc2 {[%clk 0:00:09.5]} 44. Rb1 {[%clk 0:00:04.4]} 44...
Rh2 {[%clk 0:00:10.1]} 45. Qg6 {[%clk 0:00:03.6]} 45... Re2 {[%clk 0:00:02.1]}
46. h7 {[%clk 0:00:03.3]} 46... Rxe3 {[%clk 0:00:02.7]} 47. h8=Q {[%clk
0:00:02.5]} 47... Qa5 {[%clk 0:00:02.5]} 48. Qf8 {[%clk 0:00:01.8]} 48... Re1
{[%clk 0:00:01.7]} 49. Qb4 {[%clk 0:00:02]} 49... Rxb1+ {[%clk 0:00:01.1]} 50.
Kxb1 {[%clk 0:00:02.9]} 50... Qc7 {[%clk 0:00:01.8]} 51. Qc5+ {[%clk 0:00:02.8]}
51... Qxc5 {[%clk 0:00:02.3]} 52. dxc5 {[%clk 0:00:03.7]} 1-0

[Event "*** Titled Tuesday Blitz"]
[Site "Chess.com"]
[Date "2020.10.20"]
[Round "2"]
[White "C_K_G"]
[Black "Carnivoras"]
[Result "0-1"]
[WhiteElo "2089"]
[BlackElo "2637"]
[TimeControl "180+1"]
[EndTime "10:19:16 PDT"]
[Termination "Carnivoras won on time"]

1. e4 {[%clk 0:03:00.3]} 1... e5 {[%clk 0:02:59.1]} 2. Nf3 {[%clk 0:02:59.7]}
2... Nc6 {[%clk 0:02:59.7]} 3. Bc4 {[%clk 0:02:58.8]} 3... Nf6 {[%clk
0:02:59.2]} 4. Ng5 {[%clk 0:02:54.6]} 4... d5 {[%clk 0:02:59.2]} 5. exd5 {[%clk
0:02:53.7]} 5... Na5 {[%clk 0:02:59.8]} 6. Bb5+ {[%clk 0:02:52.6]} 6... c6
{[%clk 0:03:00.3]} 7. dxc6 {[%clk 0:02:51.5]} 7... bxc6 {[%clk 0:03:01.2]} 8.
Qf3 {[%clk 0:02:47.2]} 8... Be7 {[%clk 0:02:38.8]} 9. Bxc6+ {[%clk 0:02:43.8]}
9... Nxc6 {[%clk 0:02:37.6]} 10. Qxc6+ {[%clk 0:02:44.2]} 10... Bd7 {[%clk
0:02:37.9]} 11. Qc4 {[%clk 0:02:41.1]} 11... O-O {[%clk 0:02:36.5]} 12. Nc3
{[%clk 0:02:38.7]} 12... Rc8 {[%clk 0:02:30]} 13. Qe2 {[%clk 0:02:35.7]} 13...
h6 {[%clk 0:02:02.1]} 14. Nf3 {[%clk 0:02:27.1]} 14... e4 {[%clk 0:01:35.1]} 15.
Ne5 {[%clk 0:02:25.5]} 15... Bf5 {[%clk 0:01:29.3]} 16. h3 {[%clk 0:02:20.3]}
16... h5 {[%clk 0:01:22.3]} 17. Nc4 {[%clk 0:02:17.6]} 17... Qd7 {[%clk
0:00:51.5]} 18. Ne3 {[%clk 0:02:08.3]} 18... Be6 {[%clk 0:00:50.3]} 19. b3
{[%clk 0:02:05.8]} 19... a5 {[%clk 0:00:31.3]} 20. a4 {[%clk 0:01:54.1]} 20...
Rfd8 {[%clk 0:00:26.4]} 21. Bb2 {[%clk 0:01:49.5]} 21... Bb4 {[%clk 0:00:26.1]}
22. O-O-O {[%clk 0:01:44.7]} 22... Rc7 {[%clk 0:00:22.6]} 23. Kb1 {[%clk
0:01:42.1]} 23... Rdc8 {[%clk 0:00:22.6]} 24. g4 {[%clk 0:01:27.8]} 24... hxg4
{[%clk 0:00:17.6]} 25. hxg4 {[%clk 0:01:28.5]} 25... Nxg4 {[%clk 0:00:18.2]} 26.
Nxe4 {[%clk 0:01:21.3]} 26... Qc6 {[%clk 0:00:05.3]} 27. Nc3 {[%clk 0:01:11.6]}
27... Nxe3 {[%clk 0:00:05.1]} 28. fxe3 {[%clk 0:01:07.6]} 28... Rb7 {[%clk
0:00:03.8]} 29. Qd3 {[%clk 0:00:56.2]} 29... Kf8 {[%clk 0:00:02.7]} 30. Rh8+
{[%clk 0:00:52.6]} 30... Ke7 {[%clk 0:00:03.3]} 31. Rxc8 {[%clk 0:00:53]} 31...
Qxc8 {[%clk 0:00:04.2]} 32. Nd5+ {[%clk 0:00:40.5]} 32... Bxd5 {[%clk
0:00:03.4]} 33. Qxd5 {[%clk 0:00:40.7]} 33... f6 {[%clk 0:00:03.4]} 34. Qe4+
{[%clk 0:00:29.5]} 34... Kf7 {[%clk 0:00:02.4]} 35. Rg1 {[%clk 0:00:26.4]} 35...
Re7 {[%clk 0:00:02.2]} 36. Qg6+ {[%clk 0:00:25.4]} 36... Kf8 {[%clk 0:00:02.5]}
37. Rh1 {[%clk 0:00:25.2]} 37... Kg8 {[%clk 0:00:02]} 38. Qh5 {[%clk 0:00:21.2]}
38... Qe6 {[%clk 0:00:01.1]} 39. Qh8+ {[%clk 0:00:20.5]} 39... Kf7 {[%clk
0:00:02]} 40. Qh5+ {[%clk 0:00:20.4]} 40... Kf8 {[%clk 0:00:02.5]} 41. Qxa5
{[%clk 0:00:19]} 41... Bxa5 {[%clk 0:00:02.2]} 42. Ba3 {[%clk 0:00:17.4]} 42...
Kf7 {[%clk 0:00:03.1]} 43. Bxe7 {[%clk 0:00:16]} 43... Qxe7 {[%clk 0:00:04]} 44.
Rh4 {[%clk 0:00:14.9]} 44... Bxd2 {[%clk 0:00:03.6]} 45. Rh3 {[%clk 0:00:13]}
45... Bc3 {[%clk 0:00:04]} 46. Kc1 {[%clk 0:00:10.4]} 46... Be5 {[%clk
0:00:04.9]} 47. Kd1 {[%clk 0:00:10.2]} 47... Qa3 {[%clk 0:00:04.9]} 48. Ke2
{[%clk 0:00:10.3]} 48... Qa1 {[%clk 0:00:05.8]} 49. Kd3 {[%clk 0:00:10.7]} 49...
Qb2 {[%clk 0:00:06.7]} 50. Rf3 {[%clk 0:00:09]} 50... Qc3+ {[%clk 0:00:07.2]}
51. Ke2 {[%clk 0:00:08]} 51... Qxc2+ {[%clk 0:00:08.1]} 52. Kf1 {[%clk
0:00:06.4]} 52... Qxb3 {[%clk 0:00:09]} 53. Kg2 {[%clk 0:00:06.9]} 53... Qxa4
{[%clk 0:00:09.2]} 54. Kh3 {[%clk 0:00:07.1]} 54... Qe4 {[%clk 0:00:09.2]} 55.
Kg2 {[%clk 0:00:05.1]} 55... g5 {[%clk 0:00:09.1]} 56. Kf2 {[%clk 0:00:05.6]}
56... g4 {[%clk 0:00:09.5]} 0-1

[Event "*** Titled Tuesday Blitz"]
[Site "Chess.com"]
[Date "2020.10.20"]
[Round "2"]
[White "Snegokhod"]
[Black "A-S-00"]
[Result "0-1"]
[WhiteElo "2437"]
[BlackElo "2282"]
[TimeControl "180+1"]
[EndTime "10:19:18 PDT"]
[Termination "A-S-00 won on time"]

1. e4 {[%clk 0:03:00.9]} 1... c5 {[%clk 0:02:59.1]} 2. Nf3 {[%clk 0:03:00.2]}
2... e6 {[%clk 0:02:57.7]} 3. d3 {[%clk 0:02:59.4]} 3... d5 {[%clk 0:02:56.8]}
4. Nbd2 {[%clk 0:02:58.8]} 4... Nc6 {[%clk 0:02:56.1]} 5. g3 {[%clk 0:02:58.9]}
5... g6 {[%clk 0:02:56.3]} 6. Bg2 {[%clk 0:02:59.3]} 6... Bg7 {[%clk 0:02:56.7]}
7. O-O {[%clk 0:03:00]} 7... Nge7 {[%clk 0:02:56.8]} 8. Re1 {[%clk 0:03:00.3]}
8... O-O {[%clk 0:02:56.4]} 9. e5 {[%clk 0:02:59.8]} 9... Qc7 {[%clk 0:02:54.3]}
10. Qe2 {[%clk 0:02:59.2]} 10... f6 {[%clk 0:02:46]} 11. exf6 {[%clk 0:02:58.7]}
11... Bxf6 {[%clk 0:02:45.5]} 12. c4 {[%clk 0:02:48.5]} 12... Bd7 {[%clk
0:02:26.8]} 13. Nb3 {[%clk 0:02:45.1]} 13... b6 {[%clk 0:02:20]} 14. Bf4 {[%clk
0:02:41.8]} 14... Qb7 {[%clk 0:02:09.4]} 15. Ng5 {[%clk 0:02:36.3]} 15... e5
{[%clk 0:00:54.4]} 16. Bd2 {[%clk 0:02:12.1]} 16... dxc4 {[%clk 0:00:42.2]} 17.
dxc4 {[%clk 0:02:09.2]} 17... Qc7 {[%clk 0:00:37.4]} 18. h4 {[%clk 0:01:51]}
18... Rae8 {[%clk 0:00:36]} 19. h5 {[%clk 0:01:50.4]} 19... Nf5 {[%clk
0:00:30.7]} 20. Bd5+ {[%clk 0:01:47.6]} 20... Kg7 {[%clk 0:00:28.8]} 21. h6+
{[%clk 0:01:45]} 21... Nxh6 {[%clk 0:00:28.2]} 22. Ne4 {[%clk 0:01:39.4]} 22...
Nf5 {[%clk 0:00:25.9]} 23. Nxf6 {[%clk 0:01:38.7]} 23... Rxf6 {[%clk 0:00:25.5]}
24. Bg5 {[%clk 0:01:12.8]} 24... Rff8 {[%clk 0:00:24.3]} 25. Kg2 {[%clk
0:01:00.5]} 25... Ncd4 {[%clk 0:00:23.6]} 26. Nxd4 {[%clk 0:00:59.7]} 26... Nxd4
{[%clk 0:00:22.9]} 27. Qe4 {[%clk 0:00:56.6]} 27... Bf5 {[%clk 0:00:18.9]} 28.
Qh4 {[%clk 0:00:56.5]} 28... Kh8 {[%clk 0:00:18.1]} 29. Bf6+ {[%clk 0:00:52]}
29... Rxf6 {[%clk 0:00:17.7]} 30. Qxf6+ {[%clk 0:00:51.8]} 30... Qg7 {[%clk
0:00:18.6]} 31. Qxg7+ {[%clk 0:00:46.2]} 31... Kxg7 {[%clk 0:00:18.3]} 32. Rad1
{[%clk 0:00:44.9]} 32... Nc2 {[%clk 0:00:17.6]} 33. Re2 {[%clk 0:00:32.8]} 33...
Nb4 {[%clk 0:00:16.3]} 34. a3 {[%clk 0:00:27.3]} 34... Nd3 {[%clk 0:00:15.3]}
35. Be4 {[%clk 0:00:19.6]} 35... Rd8 {[%clk 0:00:09.2]} 36. Rxd3 {[%clk
0:00:17.6]} 36... Bxe4+ {[%clk 0:00:07.5]} 37. Rxe4 {[%clk 0:00:18]} 37... Rxd3
{[%clk 0:00:08.1]} 38. Rxe5 {[%clk 0:00:18.9]} 38... Rd2 {[%clk 0:00:08.6]} 39.
Re7+ {[%clk 0:00:19.1]} 39... Kh6 {[%clk 0:00:08.1]} 40. b4 {[%clk 0:00:19.4]}
40... cxb4 {[%clk 0:00:07.3]} 41. axb4 {[%clk 0:00:19.6]} 41... Rc2 {[%clk
0:00:07.9]} 42. Rc7 {[%clk 0:00:17.3]} 42... a5 {[%clk 0:00:07.1]} 43. b5 {[%clk
0:00:14.8]} 43... a4 {[%clk 0:00:06.4]} 44. Kf3 {[%clk 0:00:14.5]} 44... a3
{[%clk 0:00:06.4]} 45. Ke3 {[%clk 0:00:11.7]} 45... a2 {[%clk 0:00:06.5]} 46.
Ra7 {[%clk 0:00:11.9]} 46... Rxc4 {[%clk 0:00:06.5]} 47. Rxa2 {[%clk 0:00:12]}
47... Rb4 {[%clk 0:00:06.8]} 48. Ra7 {[%clk 0:00:09.6]} 48... Rxb5 {[%clk
0:00:07.1]} 49. Rb7 {[%clk 0:00:09.7]} 49... Rb4 {[%clk 0:00:06.5]} 50. f4
{[%clk 0:00:09.4]} 50... b5 {[%clk 0:00:06.7]} 51. g4 {[%clk 0:00:09.4]} 51...
Rb3+ {[%clk 0:00:06.1]} 52. Ke4 {[%clk 0:00:09.6]} 52... Rb1 {[%clk 0:00:05.4]}
53. Ke5 {[%clk 0:00:06.1]} 53... Re1+ {[%clk 0:00:04.6]} 54. Kf6 {[%clk
0:00:06.2]} 54... Re4 {[%clk 0:00:02.9]} 55. g5+ {[%clk 0:00:02.2]} 55... Kh5
{[%clk 0:00:03]} 56. f5 {[%clk 0:00:01.3]} 56... gxf5 {[%clk 0:00:02.5]} 0-1

[Event "*** Titled Tuesday Blitz"]
[Site "Chess.com"]
[Date "2020.10.20"]
[Round "2"]
[White "alexwinter25"]
[Black "ftorodent"]
[Result "1-0"]
[WhiteElo "2376"]
[BlackElo "2669"]
[TimeControl "180+1"]
[EndTime "10:19:22 PDT"]
[Termination "alexwinter25 won by resignation"]

1. e4 {[%clk 0:03:00.9]} 1... c5 {[%clk 0:02:59.2]} 2. Nf3 {[%clk 0:03:00.1]}
2... e6 {[%clk 0:02:59]} 3. d4 {[%clk 0:03:00.3]} 3... cxd4 {[%clk 0:02:59.2]}
4. c3 {[%clk 0:03:00.9]} 4... a6 {[%clk 0:02:59.8]} 5. Bf4 {[%clk 0:02:49.7]}
5... d3 {[%clk 0:02:43.5]} 6. Bxd3 {[%clk 0:02:48.8]} 6... Nc6 {[%clk
0:02:43.3]} 7. O-O {[%clk 0:02:48.2]} 7... d6 {[%clk 0:02:41.8]} 8. Qe2 {[%clk
0:02:47]} 8... e5 {[%clk 0:02:30.4]} 9. Be3 {[%clk 0:02:44.4]} 9... Nf6 {[%clk
0:02:30.2]} 10. h3 {[%clk 0:02:43.5]} 10... Be7 {[%clk 0:02:29.5]} 11. Nbd2
{[%clk 0:02:42.6]} 11... O-O {[%clk 0:02:28]} 12. Rfd1 {[%clk 0:02:33.3]} 12...
d5 {[%clk 0:02:18.5]} 13. Bc2 {[%clk 0:02:27.3]} 13... Qc7 {[%clk 0:02:08.6]}
14. Bg5 {[%clk 0:02:21.6]} 14... dxe4 {[%clk 0:01:27.6]} 15. Bxf6 {[%clk
0:01:44]} 15... Bxf6 {[%clk 0:01:26.2]} 16. Nxe4 {[%clk 0:01:36.6]} 16... Be7
{[%clk 0:01:22.6]} 17. Bb3 {[%clk 0:01:12.6]} 17... h6 {[%clk 0:01:17]} 18. Ng3
{[%clk 0:01:03.8]} 18... Re8 {[%clk 0:01:01.6]} 19. Rd2 {[%clk 0:00:50.3]} 19...
Bf8 {[%clk 0:01:00.8]} 20. Rad1 {[%clk 0:00:48.6]} 20... e4 {[%clk 0:00:41.5]}
21. Nd4 {[%clk 0:00:43.8]} 21... Qf4 {[%clk 0:00:27.8]} 22. Nxc6 {[%clk
0:00:40.4]} 22... bxc6 {[%clk 0:00:27.4]} 23. Nf1 {[%clk 0:00:28.8]} 23... Be6
{[%clk 0:00:22.7]} 24. Bxe6 {[%clk 0:00:20.5]} 24... Rxe6 {[%clk 0:00:22.7]} 25.
Qe3 {[%clk 0:00:21.2]} 25... Qe5 {[%clk 0:00:18.2]} 26. Ng3 {[%clk 0:00:20.5]}
26... f5 {[%clk 0:00:17.9]} 27. Qd4 {[%clk 0:00:19.9]} 27... f4 {[%clk
0:00:14.6]} 28. Qxe5 {[%clk 0:00:17.9]} 28... Rxe5 {[%clk 0:00:14.9]} 29. Ne2
{[%clk 0:00:18.3]} 29... g5 {[%clk 0:00:13]} 30. Rd8 {[%clk 0:00:18.4]} 30...
Rxd8 {[%clk 0:00:11.9]} 31. Rxd8 {[%clk 0:00:18.3]} 31... Kf7 {[%clk 0:00:12.3]}
32. Nd4 {[%clk 0:00:18.5]} 32... c5 {[%clk 0:00:11.3]} 33. Nc6 {[%clk
0:00:18.4]} 33... Re8 {[%clk 0:00:11.1]} 34. Rxe8 {[%clk 0:00:17.6]} 34... Kxe8
{[%clk 0:00:11.1]} 35. Kf1 {[%clk 0:00:18.2]} 35... Bd6 {[%clk 0:00:10.7]} 36.
Na5 {[%clk 0:00:17.3]} 36... Kd7 {[%clk 0:00:10.5]} 37. Nc4 {[%clk 0:00:17.5]}
37... Bc7 {[%clk 0:00:10.4]} 38. b3 {[%clk 0:00:17.8]} 38... Ke6 {[%clk
0:00:10.4]} 39. a4 {[%clk 0:00:18.3]} 39... Kd5 {[%clk 0:00:10.6]} 40. Ke2
{[%clk 0:00:18.9]} 40... Bd8 {[%clk 0:00:10.2]} 41. f3 {[%clk 0:00:17.8]} 41...
Bf6 {[%clk 0:00:08.1]} 42. fxe4+ {[%clk 0:00:16.8]} 42... Kxe4 {[%clk
0:00:08.2]} 43. Nd6+ {[%clk 0:00:17.3]} 43... Kd5 {[%clk 0:00:08.4]} 44. Nc4
{[%clk 0:00:14.7]} 44... Bxc3 {[%clk 0:00:08.2]} 45. Kd3 {[%clk 0:00:12.4]}
45... Bd4 {[%clk 0:00:08.3]} 46. Nb6+ {[%clk 0:00:12.3]} 46... Kc6 {[%clk
0:00:08.5]} 47. Nc4 {[%clk 0:00:11.5]} 47... h5 {[%clk 0:00:08.1]} 48. Ke4
{[%clk 0:00:11.6]} 48... Kd7 {[%clk 0:00:07.4]} 49. Kf5 {[%clk 0:00:11.3]} 49...
f3 {[%clk 0:00:06.5]} 50. gxf3 {[%clk 0:00:11.3]} 50... Kc6 {[%clk 0:00:06.3]}
51. Kxg5 {[%clk 0:00:11.3]} 51... Kd5 {[%clk 0:00:06.9]} 52. Kxh5 {[%clk
0:00:09.1]} 52... Bh8 {[%clk 0:00:07.2]} 53. Kg6 {[%clk 0:00:09]} 53... Kd4
{[%clk 0:00:07.5]} 54. f4 {[%clk 0:00:07.6]} 54... Kc3 {[%clk 0:00:07.5]} 55.
Na5 {[%clk 0:00:05.3]} 55... Kb4 {[%clk 0:00:07.4]} 56. Nb7 {[%clk 0:00:04.8]}
56... c4 {[%clk 0:00:07.7]} 57. bxc4 {[%clk 0:00:04.7]} 57... Kxa4 {[%clk
0:00:07.9]} 58. f5 {[%clk 0:00:03.7]} 58... Kb4 {[%clk 0:00:08]} 59. c5 {[%clk
0:00:03.8]} 59... Kb5 {[%clk 0:00:07.3]} 60. f6 {[%clk 0:00:03.5]} 60... Bxf6
{[%clk 0:00:06.9]} 61. Kxf6 {[%clk 0:00:04.1]} 61... Kc6 {[%clk 0:00:07.4]} 62.
Na5+ {[%clk 0:00:03.2]} 62... Kxc5 {[%clk 0:00:07.4]} 63. Nb3+ {[%clk
0:00:04.1]} 63... Kb4 {[%clk 0:00:06.9]} 64. Nc1 {[%clk 0:00:03.4]} 1-0